[Event "NJSK 2026 Jeugd A"]
[Site "Helmond, Netherlands"]
[Date "2026.04.25"]
[Round "1.1"]
[White "Kshirsagar, Pranav"]
[Black "Ten Dam, Bram"]
[Result "0-1"]
[TimeControl "90min/40moves + 30min + 30sec/move"]
[WhiteTitle "-"]
[BlackTitle "-"]
[WhiteFideId "1084011"]
[BlackFideId "40104877"]
[WhiteElo "2148"]
[BlackElo "2363"]

1. d4 {[%clk 01:30:58]} {[%emt 00:00:01]} Nf6 {[%clk 01:30:55]} {[%emt
00:00:05]} 2. c4 {[%clk 01:31:20]} {[%emt 00:00:08]} e6 {[%clk 01:31:20]}
{[%emt 00:00:05]} 3. Nf3 {[%clk 01:31:44]} {[%emt 00:00:06]} b6 {[%clk
01:31:46]} {[%emt 00:00:05]} 4. g3 {[%clk 01:32:03]} {[%emt 00:00:10]} Bb7
{[%clk 01:32:09]} {[%emt 00:00:07]} 5. Bg2 {[%clk 01:32:27]} {[%emt 00:00:07]}
Be7 {[%clk 01:32:35]} {[%emt 00:00:04]} 6. O-O {[%clk 01:31:59]} {[%emt
00:00:57]} O-O {[%clk 01:31:58]} {[%emt 00:01:08]} 7. Nc3 {[%clk 01:32:07]}
{[%emt 00:00:22]} Ne4 {[%clk 01:32:00]} {[%emt 00:00:27]} 8. Qc2 {[%clk
01:27:29]} {[%emt 00:05:08]} Nxc3 {[%clk 01:32:24]} {[%emt 00:00:06]} 9. bxc3
{[%clk 01:27:39]} {[%emt 00:00:20]} f5 {[%clk 01:25:09]} {[%emt 00:07:46]} 10.
Ne5 {[%clk 01:08:07]} {[%emt 00:20:02]} Qc8 {[%clk 01:19:11]} {[%emt 00:06:28]}
11. Re1 {[%clk 00:50:23]} {[%emt 00:18:13]} d6 {[%clk 00:56:51]} {[%emt
00:22:50]} 12. Nd3 {[%clk 00:44:58]} {[%emt 00:05:54]} Bxg2 {[%clk 00:54:32]}
{[%emt 00:02:50]} 13. Kxg2 {[%clk 00:44:56]} {[%emt 00:00:32]} Nd7 {[%clk
00:54:52]} {[%emt 00:00:10]} 14. f3 {[%clk 00:27:41]} {[%emt 00:17:45]} e5
{[%clk 00:48:51]} {[%emt 00:06:31]} 15. e4 {[%clk 00:20:59]} {[%emt 00:07:11]}
fxe4 {[%clk 00:46:53]} {[%emt 00:02:28]} 16. fxe4 {[%clk 00:19:31]} {[%emt
00:01:59]} Qb7 {[%clk 00:44:50]} {[%emt 00:02:34]} 17. Qe2 {[%clk 00:15:54]}
{[%emt 00:04:06]} Rf7 {[%clk 00:35:04]} {[%emt 00:10:16]} 18. Bb2 {[%clk
00:13:24]} {[%emt 00:03:00]} Re8 {[%clk 00:32:04]} {[%emt 00:03:31]} 19. Rf1
{[%clk 00:07:32]} {[%emt 00:06:22]} Bf6 {[%clk 00:31:44]} {[%emt 00:00:51]} 20.
Rae1 {[%clk 00:07:23]} {[%emt 00:00:38]} Rfe7 {[%clk 00:31:05]} {[%emt
00:01:09]} 21. Nf2 {[%clk 00:06:06]} {[%emt 00:01:46]} a5 {[%clk 00:25:39]}
{[%emt 00:05:57]} 22. Kg1 {[%clk 00:05:54]} {[%emt 00:00:42]} Re6 {[%clk
00:21:42]} {[%emt 00:04:27]} 23. d5 {[%clk 00:02:31]} {[%emt 00:03:54]} R6e7
{[%clk 00:22:06]} {[%emt 00:00:06]} 24. Ng4 {[%clk 00:02:50]} {[%emt 00:00:10]}
Rf8 {[%clk 00:17:52]} {[%emt 00:04:46]} 25. Rf2 {[%clk 00:02:01]} {[%emt
00:01:19]} Ref7 {[%clk 00:17:22]} {[%emt 00:01:00]} 26. Ref1 {[%clk 00:02:19]}
{[%emt 00:00:11]} Qc8 {[%clk 00:17:31]} {[%emt 00:00:22]} 27. Bc1 {[%clk
00:01:52]} {[%emt 00:00:56]} Qd8 {[%clk 00:14:33]} {[%emt 00:03:28]} 28. Rf5
{[%clk 00:01:36]} {[%emt 00:00:46]} Be7 {[%clk 00:12:49]} {[%emt 00:02:14]} 29.
Rxf7 {[%clk 00:01:48]} {[%emt 00:00:18]} Rxf7 {[%clk 00:13:08]} {[%emt
00:00:11]} 30. Rxf7 {[%clk 00:02:17]} Kxf7 {[%clk 00:13:27]} {[%emt 00:00:11]}
31. Qf3+ {[%clk 00:02:12]} {[%emt 00:00:35]} Kg8 {[%clk 00:12:26]} {[%emt
00:01:29]} 32. Be3 {[%clk 00:01:15]} {[%emt 00:01:29]} Nf8 {[%clk 00:11:05]}
{[%emt 00:01:50]} 33. Qf5 {[%clk 00:00:53]} {[%emt 00:00:52]} Qe8 {[%clk
00:03:02]} {[%emt 00:08:34]} 34. Bg5 {[%clk 00:01:03]} {[%emt 00:00:20]} Bxg5
{[%clk 00:02:34]} {[%emt 00:00:57]} 35. Qxg5 {[%clk 00:01:32]} Qg6 {[%clk
00:03:02]} {[%emt 00:00:03]} 36. Qxg6 {[%clk 00:01:31]} {[%emt 00:00:31]} Nxg6
{[%clk 00:01:19]} {[%emt 00:02:14]} 37. Kg2 {[%clk 00:01:17]} {[%emt 00:00:44]}
Nf8 {[%clk 00:01:38]} {[%emt 00:00:10]} 38. Nf2 {[%clk 00:00:51]} {[%emt
00:00:56]} Nd7 {[%clk 00:02:04]} {[%emt 00:00:04]} 39. Nd3 {[%clk 00:01:15]}
{[%emt 00:00:07]} Kf7 {[%clk 00:01:21]} {[%emt 00:01:13]} 40. Kf3 {[%clk
00:01:38]} {[%emt 00:00:07]} g5 {[%clk 00:00:56]} {[%emt 00:00:55]} 41. h3
{[%clk 00:15:53]} {[%emt 00:16:14]} h5 {[%clk 00:27:40]} {[%emt 00:03:46]} 42.
a4 {[%clk 00:10:13]} {[%emt 00:06:10]} Kg6 {[%clk 00:25:57]} {[%emt 00:02:14]}
43. h4 {[%clk 00:05:51]} {[%emt 00:04:51]} Kf6 {[%clk 00:16:08]} {[%emt
00:10:19]} 44. Ke3 {[%clk 00:04:52]} {[%emt 00:01:30]} Nf8 {[%clk 00:16:11]}
{[%emt 00:00:27]} 45. Ne1 {[%clk 00:05:15]} {[%emt 00:00:06]} Kg6 {[%clk
00:12:51]} {[%emt 00:03:50]} 46. Kf3 {[%clk 00:03:47]} {[%emt 00:01:59]} Nh7
{[%clk 00:12:02]} {[%emt 00:01:19]} 47. Nd3 {[%clk 00:04:01]} {[%emt 00:00:16]}
Kf7 {[%clk 00:11:28]} {[%emt 00:01:04]} 48. Ke3 {[%clk 00:02:28]} {[%emt
00:02:03]} Ke7 {[%clk 00:06:59]} {[%emt 00:04:58]} 49. Kf3 {[%clk 00:02:55]}
{[%emt 00:00:03]} Kd7 {[%clk 00:06:53]} {[%emt 00:00:37]} 50. Ke3 {[%clk
00:01:45]} {[%emt 00:01:40]} gxh4 {[%clk 00:05:45]} {[%emt 00:01:38]} 51. gxh4
{[%clk 00:02:13]} {[%emt 00:00:02]} Nf8 {[%clk 00:06:08]} {[%emt 00:00:06]} 52.
Kf3 {[%clk 00:00:52]} {[%emt 00:01:52]} Ng6 {[%clk 00:06:25]} {[%emt 00:00:13]}
53. Kg3 {[%clk 00:01:19]} {[%emt 00:00:03]} c6 {[%clk 00:05:55]} {[%emt
00:01:01]} 54. Nb2 {[%clk 00:01:15]} {[%emt 00:00:34]} Kc7 {[%clk 00:05:41]}
{[%emt 00:00:43]} 55. Nd3 {[%clk 00:00:49]} {[%emt 00:00:56]} Kb7 {[%clk
00:03:41]} {[%emt 00:02:30]} 56. Nb2 {[%clk 00:01:15]} {[%emt 00:00:04]} Kb8
{[%clk 00:03:37]} {[%emt 00:00:34]} 57. Nd3 {[%clk 00:01:31]} {[%emt 00:00:14]}
Kc7 {[%clk 00:04:00]} {[%emt 00:00:07]} 58. Nb2 {[%clk 00:01:57]} {[%emt
00:00:04]} Nf4 {[%clk 00:04:05]} {[%emt 00:00:24]} 59. Kf3 {[%clk 00:02:23]}
{[%emt 00:00:05]} Kb7 {[%clk 00:03:27]} {[%emt 00:01:08]} 60. Kf2 {[%clk
00:02:21]} {[%emt 00:00:31]} Ka6 {[%clk 00:01:18]} {[%emt 00:02:39]} 61. Kf3
{[%clk 00:01:19]} {[%emt 00:01:33]} cxd5 {[%clk 00:01:39]} {[%emt 00:00:08]} 62.
exd5 {[%clk 00:01:31]} {[%emt 00:00:19]} Ng6 {[%clk 00:01:14]} {[%emt
00:00:55]} 63. Kg3 {[%clk 00:01:48]} {[%emt 00:00:13]} Ne7 {[%clk 00:01:36]}
{[%emt 00:00:07]} 64. Nd3 {[%clk 00:01:16]} {[%emt 00:01:02]} Nf5+ {[%clk
00:02:01]} {[%emt 00:00:06]} 65. Kf3 {[%clk 00:01:03]} {[%emt 00:00:43]} Nxh4+
{[%clk 00:02:06]} {[%emt 00:00:24]} 66. Ke4 {[%clk 00:01:25]} {[%emt 00:00:09]}
Kb7 {[%clk 00:02:02]} {[%emt 00:00:34]} 67. Nf2 {[%clk 00:01:28]} {[%emt
00:00:26]} Kc7 {[%clk 00:02:13]} {[%emt 00:00:19]} 68. Nh1 {[%clk 00:01:27]}
{[%emt 00:00:31]} Ng6 {[%clk 00:02:14]} {[%emt 00:00:30]} 69. Ng3 {[%clk
00:00:42]} {[%emt 00:01:15]} h4 {[%clk 00:01:32]} {[%emt 00:01:11]} 70. Ne2
{[%clk 00:00:49]} {[%emt 00:00:23]} h3 {[%clk 00:01:41]} {[%emt 00:00:22]} 71.
Kf3 {[%clk 00:00:54]} {[%emt 00:00:25]} Nf4 {[%clk 00:01:01]} {[%emt 00:01:09]}
72. Ng3 {[%clk 00:01:03]} {[%emt 00:00:21]} Nd3 {[%clk 00:01:20]} {[%emt
00:00:11]} 73. Kg4 {[%clk 00:01:01]} {[%emt 00:00:32]} Nb2 {[%clk 00:01:28]}
{[%emt 00:00:22]} 74. Kxh3 {[%clk 00:01:27]} {[%emt 00:00:05]} Nxa4 {[%clk
00:01:52]} {[%emt 00:00:06]} 75. Kg2 {[%clk 00:01:25]} {[%emt 00:00:32]} Nxc3
{[%clk 00:01:53]} {[%emt 00:00:29]} 76. Nf1 {[%clk 00:01:20]} {[%emt 00:00:34]}
a4 {[%clk 00:01:23]} {[%emt 00:01:01]} 77. Nd2 {[%clk 00:01:44]} {[%emt
00:00:05]} a3 {[%clk 00:01:20]} {[%emt 00:00:33]} 78. Kf3 {[%clk 00:01:52]}
{[%emt 00:00:23]} Nd1 {[%clk 00:01:17]} {[%emt 00:00:33]} 79. Ke2 {[%clk
00:00:53]} {[%emt 00:01:28]} Nb2 {[%clk 00:01:42]} {[%emt 00:00:05]} 0-1

[Event "NJSK 2026 Jeugd A"]
[Site "Helmond, Netherlands"]
[Date "2026.04.25"]
[Round "1.2"]
[White "Arnold, Rhys"]
[Black "Dinanath, Hrdya"]
[Result "0-1"]
[TimeControl "90min/40moves + 30min + 30sec/move"]
[WhiteTitle "-"]
[BlackTitle "-"]
[WhiteFideId "1068849"]
[BlackFideId "1087991"]
[WhiteElo "2315"]
[BlackElo "2107"]

1. e4 {[%clk 01:30:57]} c5 {[%clk 01:30:57]} {[%emt 00:00:05]} 2. Nf3 {[%clk
01:31:23]} {[%emt 00:00:04]} d6 {[%clk 01:31:23]} {[%emt 00:00:04]} 3. d4
{[%clk 01:31:44]} {[%emt 00:00:08]} cxd4 {[%clk 01:31:51]} {[%emt 00:00:03]} 4.
Nxd4 {[%clk 01:32:10]} {[%emt 00:00:05]} Nf6 {[%clk 01:32:16]} {[%emt
00:00:05]} 5. Nc3 {[%clk 01:32:35]} {[%emt 00:00:04]} a6 {[%clk 01:32:42]}
{[%emt 00:00:04]} 6. f3 {[%clk 01:32:32]} {[%emt 00:00:36]} e5 {[%clk
01:33:06]} {[%emt 00:00:04]} 7. Nb3 {[%clk 01:33:00]} {[%emt 00:00:02]} Be7
{[%clk 01:33:28]} {[%emt 00:00:08]} 8. Be3 {[%clk 01:33:25]} {[%emt 00:00:04]}
Be6 {[%clk 01:33:55]} {[%emt 00:00:04]} 9. Qd2 {[%clk 01:33:39]} {[%emt
00:00:15]} h5 {[%clk 01:34:20]} {[%emt 00:00:05]} 10. Nd5 {[%clk 01:33:28]}
{[%emt 00:00:41]} Nxd5 {[%clk 01:34:39]} {[%emt 00:00:11]} 11. exd5 {[%clk
01:33:55]} {[%emt 00:00:03]} Bf5 {[%clk 01:35:04]} {[%emt 00:00:05]} 12. Be2
{[%clk 01:34:20]} {[%emt 00:00:05]} Nd7 {[%clk 01:33:58]} {[%emt 00:01:35]} 13.
O-O {[%clk 01:33:55]} {[%emt 00:00:56]} O-O {[%clk 01:34:18]} {[%emt 00:00:10]}
14. f4 {[%clk 01:30:00]} {[%emt 00:04:25]} exf4 {[%clk 01:33:23]} {[%emt
00:01:26]} 15. Bxf4 {[%clk 01:28:35]} {[%emt 00:01:54]} Bg6 {[%clk 01:33:15]}
{[%emt 00:00:38]} 16. Kh1 {[%clk 01:25:27]} {[%emt 00:03:38]} Nf6 {[%clk
01:25:55]} {[%emt 00:07:50]} 17. Bd3 {[%clk 01:12:23]} {[%emt 00:13:34]} Nxd5
{[%clk 01:06:46]} {[%emt 00:19:39]} 18. Bxg6 {[%clk 01:11:41]} {[%emt
00:01:12]} Nxf4 {[%clk 01:07:10]} {[%emt 00:00:06]} 19. Qxf4 {[%clk 01:11:48]}
{[%emt 00:00:24]} fxg6 {[%clk 01:07:31]} {[%emt 00:00:09]} 20. Qe4 {[%clk
01:12:15]} {[%emt 00:00:03]} Bf6 {[%clk 01:06:01]} {[%emt 00:02:00]} 21. Rab1
{[%clk 00:42:32]} {[%emt 00:30:13]} Qe8 {[%clk 00:51:40]} {[%emt 00:14:50]} 22.
Qxb7 {[%clk 00:39:12]} {[%emt 00:03:49]} Qb5 {[%clk 00:51:46]} {[%emt
00:00:25]} 23. Qe4 {[%clk 00:34:00]} {[%emt 00:05:42]} Kh7 {[%clk 00:47:06]}
{[%emt 00:05:10]} 24. c4 {[%clk 00:32:37]} {[%emt 00:01:53]} Rae8 {[%clk
00:41:01]} {[%emt 00:06:35]} 25. Qd3 {[%clk 00:27:32]} {[%emt 00:05:35]} Qe5
{[%clk 00:38:31]} {[%emt 00:03:00]} 26. Nd2 {[%clk 00:24:18]} {[%emt 00:03:44]}
Qe2 {[%clk 00:35:04]} {[%emt 00:03:57]} 27. Qxe2 {[%clk 00:16:40]} {[%emt
00:08:09]} Rxe2 {[%clk 00:35:29]} {[%emt 00:00:04]} 28. Rbd1 {[%clk 00:17:04]}
{[%emt 00:00:06]} Rfe8 {[%clk 00:31:58]} {[%emt 00:04:02]} 29. b3 {[%clk
00:17:22]} {[%emt 00:00:12]} R8e3 {[%clk 00:31:45]} {[%emt 00:00:42]} 30. h3
{[%clk 00:08:38]} {[%emt 00:09:15]} Rg3 {[%clk 00:29:39]} {[%emt 00:02:37]} 31.
Rg1 {[%clk 00:05:57]} {[%emt 00:03:10]} Be5 {[%clk 00:27:56]} {[%emt 00:02:12]}
32. Nf1 {[%clk 00:05:42]} {[%emt 00:00:45]} Rc3 {[%clk 00:27:14]} {[%emt
00:01:12]} 33. Rd2 {[%clk 00:03:30]} {[%emt 00:02:42]} Re1 {[%clk 00:23:13]}
{[%emt 00:04:31]} 34. Nh2 {[%clk 00:03:35]} {[%emt 00:00:25]} Rcc1 {[%clk
00:22:26]} {[%emt 00:01:16]} 35. Nf3 {[%clk 00:03:50]} {[%emt 00:00:14]} Rxg1+
{[%clk 00:22:36]} {[%emt 00:00:21]} 36. Nxg1 {[%clk 00:04:17]} {[%emt
00:00:03]} Bg3 {[%clk 00:22:45]} {[%emt 00:00:20]} 37. Re2 {[%clk 00:01:18]}
{[%emt 00:03:30]} h4 {[%clk 00:16:36]} {[%emt 00:06:39]} 38. Rd2 {[%clk
00:01:15]} {[%emt 00:00:32]} Kg8 {[%clk 00:16:31]} {[%emt 00:00:36]} 39. Re2
{[%clk 00:01:03]} {[%emt 00:00:42]} Kf7 {[%clk 00:16:52]} {[%emt 00:00:09]} 40.
Rd2 {[%clk 00:00:48]} {[%emt 00:00:45]} Ke6 {[%clk 00:14:36]} {[%emt 00:02:46]}
41. Re2+ {[%clk 00:24:09]} {[%emt 00:07:09]} Kd7 {[%clk 00:44:53]} {[%emt
00:00:13]} 42. Rd2 {[%clk 00:22:28]} {[%emt 00:02:11]} Kc6 {[%clk 00:44:29]}
{[%emt 00:00:55]} 43. b4 {[%clk 00:15:32]} {[%emt 00:07:26]} Rxc4 {[%clk
00:41:25]} {[%emt 00:03:35]} 44. Ne2 {[%clk 00:15:36]} {[%emt 00:00:25]} Rxb4
{[%clk 00:41:28]} {[%emt 00:00:27]} 45. Rd1 {[%clk 00:14:36]} {[%emt 00:01:31]}
Rb2 {[%clk 00:41:11]} {[%emt 00:00:47]} 46. Rc1+ {[%clk 00:13:10]} {[%emt
00:01:55]} Kd7 {[%clk 00:25:36]} {[%emt 00:16:06]} 47. Nc3 {[%clk 00:12:40]}
{[%emt 00:00:59]} Bf4 {[%clk 00:24:53]} {[%emt 00:01:13]} 48. Rf1 {[%clk
00:11:24]} {[%emt 00:01:46]} Be5 {[%clk 00:24:55]} {[%emt 00:00:28]} 49. Rc1
{[%clk 00:10:33]} {[%emt 00:01:22]} Bxc3 {[%clk 00:24:59]} {[%emt 00:00:26]} 50.
Rxc3 {[%clk 00:10:58]} {[%emt 00:00:04]} Rxa2 {[%clk 00:25:23]} {[%emt
00:00:07]} 51. Rc4 {[%clk 00:11:05]} {[%emt 00:00:23]} g5 {[%clk 00:25:45]}
{[%emt 00:00:07]} 52. Kg1 {[%clk 00:11:02]} {[%emt 00:00:33]} Ra5 {[%clk
00:21:24]} {[%emt 00:04:52]} 53. Kf2 {[%clk 00:10:38]} {[%emt 00:00:53]} Rc5
{[%clk 00:20:31]} {[%emt 00:01:23]} 54. Rb4 {[%clk 00:10:31]} {[%emt 00:00:36]}
Kc6 {[%clk 00:19:57]} {[%emt 00:01:05]} 55. Rb8 {[%clk 00:10:50]} {[%emt
00:00:11]} a5 {[%clk 00:19:31]} {[%emt 00:00:56]} 56. Ke3 {[%clk 00:09:43]}
{[%emt 00:01:37]} a4 {[%clk 00:18:10]} {[%emt 00:01:51]} 57. Kd4 {[%clk
00:09:06]} {[%emt 00:01:06]} Ra5 {[%clk 00:18:19]} {[%emt 00:00:22]} 58. Rc8+
{[%clk 00:08:09]} {[%emt 00:01:27]} Kd7 {[%clk 00:18:06]} {[%emt 00:00:43]} 59.
Rc2 {[%clk 00:08:26]} {[%emt 00:00:13]} a3 {[%clk 00:18:29]} {[%emt 00:00:08]}
60. Ra2 {[%clk 00:08:52]} {[%emt 00:00:04]} Kc6 {[%clk 00:17:56]} {[%emt
00:01:03]} 61. Kc4 {[%clk 00:09:17]} {[%emt 00:00:04]} Ra7 {[%clk 00:17:30]}
{[%emt 00:00:57]} 62. Kd4 {[%emt 00:00:59]} 0-1

[Event "NJSK 2026 Jeugd A"]
[Site "Helmond, Netherlands"]
[Date "2026.04.25"]
[Round "1.3"]
[White "Garay, Enzo"]
[Black "Smeets, Kobe"]
[Result "0-1"]
[TimeControl "90min/40moves + 30min + 30sec/move"]
[WhiteTitle "-"]
[BlackTitle "-"]
[WhiteFideId "40104125"]
[BlackFideId "1063910"]
[WhiteElo "2098"]
[BlackElo "2315"]

1. e4 {[%clk 01:30:56]} {[%emt 00:00:03]} c5 {[%clk 01:30:41]} {[%emt
00:00:20]} 2. Nf3 {[%clk 01:31:18]} {[%emt 00:00:08]} e6 {[%clk 01:30:49]}
{[%emt 00:00:23]} 3. d4 {[%clk 01:31:41]} {[%emt 00:00:06]} cxd4 {[%clk
01:31:04]} {[%emt 00:00:16]} 4. Nxd4 {[%clk 01:32:06]} {[%emt 00:00:04]} Nc6
{[%clk 01:31:20]} {[%emt 00:00:13]} 5. Nc3 {[%clk 01:32:32]} {[%emt 00:00:05]}
a6 {[%clk 01:31:36]} {[%emt 00:00:14]} 6. Be3 {[%clk 01:32:03]} {[%emt
00:00:59]} Nf6 {[%clk 01:31:55]} {[%emt 00:00:10]} 7. Qf3 {[%clk 01:28:23]}
{[%emt 00:04:10]} h5 {[%clk 01:30:39]} {[%emt 00:01:46]} 8. O-O-O {[%clk
01:25:06]} {[%emt 00:03:47]} Ng4 {[%clk 01:28:17]} {[%emt 00:02:52]} 9. Nxc6
{[%clk 01:19:55]} {[%emt 00:05:43]} bxc6 {[%clk 01:28:40]} {[%emt 00:00:07]} 10.
Bf4 {[%clk 01:18:47]} {[%emt 00:01:36]} e5 {[%clk 01:24:37]} {[%emt 00:04:34]}
11. Be3 {[%clk 01:16:51]} {[%emt 00:02:26]} Nxe3 {[%clk 01:21:32]} {[%emt
00:03:35]} 12. Qxe3 {[%clk 01:17:02]} {[%emt 00:00:19]} Be7 {[%clk 01:10:49]}
{[%emt 00:11:13]} 13. h4 {[%clk 00:59:47]} {[%emt 00:17:45]} Bxh4 {[%clk
01:02:58]} {[%emt 00:08:22]} 14. g3 {[%clk 00:59:47]} {[%emt 00:00:28]} Bf6
{[%clk 01:03:14]} {[%emt 00:00:14]} 15. Bc4 {[%clk 00:58:06]} {[%emt 00:02:10]}
d6 {[%clk 00:54:52]} {[%emt 00:08:54]} 16. Qd3 {[%clk 00:51:53]} {[%emt
00:06:43]} Ke7 {[%clk 00:41:16]} {[%emt 00:14:06]} 17. f4 {[%clk 00:47:19]}
{[%emt 00:05:03]} Bg4 {[%clk 00:40:19]} {[%emt 00:01:28]} 18. Rdf1 {[%clk
00:44:19]} {[%emt 00:03:28]} Qa5 {[%clk 00:31:05]} {[%emt 00:09:45]} 19. Nd1
{[%clk 00:40:24]} {[%emt 00:04:24]} Rab8 {[%clk 00:29:41]} {[%emt 00:01:55]} 20.
c3 {[%clk 00:33:25]} {[%emt 00:07:30]} Qb6 {[%clk 00:20:28]} {[%emt 00:09:42]}
21. Rh2 {[%clk 00:31:55]} {[%emt 00:02:00]} h4 {[%clk 00:14:56]} {[%emt
00:06:03]} 22. Rd2 {[%clk 00:31:44]} {[%emt 00:00:40]} Rbd8 {[%clk 00:14:05]}
{[%emt 00:01:21]} 23. Ne3 {[%clk 00:30:37]} {[%emt 00:01:37]} Bh3 {[%clk
00:13:06]} {[%emt 00:01:29]} 24. Rg1 {[%clk 00:25:51]} {[%emt 00:05:16]} hxg3
{[%clk 00:12:21]} {[%emt 00:01:15]} 25. Rxg3 {[%clk 00:26:16]} {[%emt
00:00:06]} exf4 {[%clk 00:12:04]} {[%emt 00:00:46]} 26. Rxh3 {[%clk 00:26:41]}
{[%emt 00:00:05]} fxe3 {[%clk 00:12:28]} {[%emt 00:00:07]} 27. Rxe3 {[%clk
00:26:42]} {[%emt 00:00:28]} Bg5 {[%clk 00:11:29]} {[%emt 00:01:28]} 28. Qf1
{[%clk 00:25:29]} {[%emt 00:01:44]} Rh1 {[%clk 00:11:36]} {[%emt 00:00:24]} 0-1

[Event "NJSK 2026 Jeugd A"]
[Site "Helmond, Netherlands"]
[Date "2026.04.25"]
[Round "1.4"]
[White "Zhu, Chenwu"]
[Black "Van Arendonk, Polle"]
[Result "1-0"]
[TimeControl "90min/40moves + 30min + 30sec/move"]
[WhiteTitle "-"]
[BlackTitle "-"]
[WhiteFideId "1080687"]
[BlackFideId "1072048"]
[WhiteElo "2282"]
[BlackElo "2060"]

1. e4 {[%clk 01:30:54]} {[%emt 00:00:05]} e5 {[%clk 01:30:57]} {[%emt
00:00:03]} 2. Nf3 {[%clk 01:31:19]} {[%emt 00:00:05]} Nc6 {[%clk 01:31:24]}
{[%emt 00:00:03]} 3. Bb5 {[%clk 01:31:43]} {[%emt 00:00:06]} a6 {[%clk
01:31:51]} {[%emt 00:00:03]} 4. Ba4 {[%clk 01:32:09]} {[%emt 00:00:05]} Nf6
{[%clk 01:32:17]} {[%emt 00:00:04]} 5. O-O {[%clk 01:32:30]} {[%emt 00:00:08]}
Be7 {[%clk 01:32:41]} {[%emt 00:00:06]} 6. Re1 {[%clk 01:32:47]} {[%emt
00:00:13]} b5 {[%clk 01:33:08]} {[%emt 00:00:05]} 7. Bb3 {[%clk 01:33:14]}
{[%emt 00:00:03]} d6 {[%clk 01:33:32]} {[%emt 00:00:08]} 8. a4 {[%clk
01:33:38]} {[%emt 00:00:02]} Bd7 {[%clk 01:33:19]} {[%emt 00:00:43]} 9. c3
{[%clk 01:33:41]} {[%emt 00:00:26]} O-O {[%clk 01:33:43]} {[%emt 00:00:07]} 10.
d4 {[%clk 01:33:35]} {[%emt 00:00:36]} h6 {[%clk 01:34:05]} {[%emt 00:00:08]}
11. Nbd2 {[%clk 01:30:16]} {[%emt 00:03:49]} exd4 {[%clk 01:34:12]} {[%emt
00:00:25]} 12. cxd4 {[%clk 01:29:08]} {[%emt 00:01:36]} Nb4 {[%clk 01:34:35]}
{[%emt 00:00:07]} 13. Nf1 {[%clk 01:25:05]} {[%emt 00:04:33]} c5 {[%clk
01:34:34]} {[%emt 00:00:31]} 14. d5 {[%clk 01:11:42]} {[%emt 00:13:53]} bxa4
{[%clk 01:14:48]} {[%emt 00:20:17]} 15. Bxa4 {[%clk 01:09:01]} {[%emt
00:03:10]} Bxa4 {[%clk 01:15:14]} {[%emt 00:00:05]} 16. Rxa4 {[%clk 01:08:08]}
{[%emt 00:01:22]} Nd7 {[%clk 01:15:28]} {[%emt 00:00:16]} 17. Ne3 {[%clk
00:54:49]} {[%emt 00:13:48]} Nb6 {[%clk 01:13:32]} {[%emt 00:02:28]} 18. Ra3
{[%clk 00:54:19]} {[%emt 00:01:00]} Bf6 {[%clk 01:12:55]} {[%emt 00:01:06]} 19.
Nd2 {[%clk 00:47:03]} {[%emt 00:07:45]} Qe7 {[%clk 00:53:10]} {[%emt 00:20:16]}
20. Nf5 {[%clk 00:44:52]} {[%emt 00:02:41]} Qd7 {[%clk 00:50:27]} {[%emt
00:03:14]} 21. Rg3 {[%clk 00:35:16]} {[%emt 00:10:05]} Kh7 {[%clk 00:34:57]}
{[%emt 00:16:01]} 22. Qh5 {[%clk 00:30:51]} {[%emt 00:04:53]} Na2 {[%clk
00:30:11]} {[%emt 00:05:17]} 23. e5 {[%clk 00:25:56]} {[%emt 00:05:25]} Rae8
{[%clk 00:25:54]} {[%emt 00:04:47]} 24. exf6 {[%clk 00:24:23]} {[%emt
00:02:02]} Rxe1+ {[%clk 00:25:23]} {[%emt 00:01:02]} 25. Nf1 {[%clk 00:24:47]}
{[%emt 00:00:05]} 1-0